[Event "Late-Titled-Tuesday-Blitz-October-24-2023"]
[Site "Chess.com"]
[Date "2023.10.24"]
[Round "5"]
[White "Korchmar_Vasiliy"]
[Black "MaxLeto"]
[Result "1-0"]
[WhiteElo "2780"]
[BlackElo "2561"]
[TimeControl "180+1"]
[EndTime "14:54:39 PDT"]
[Termination "Korchmar_Vasiliy won on time"]

1. e4 {[%clk 0:03:00.9]} 1... c5 {[%clk 0:03:00.3]} 2. d4 {[%clk 0:03:01.1]}
2... cxd4 {[%clk 0:02:59.7]} 3. Qxd4 {[%clk 0:03:02]} 3... Nc6 {[%clk
0:02:59.4]} 4. Qd3 {[%clk 0:03:02.5]} 4... Nf6 {[%clk 0:02:58.6]} 5. Nc3 {[%clk
0:03:03]} 5... g6 {[%clk 0:02:58.6]} 6. Nf3 {[%clk 0:03:03.5]} 6... Bg7 {[%clk
0:02:55.9]} 7. Be2 {[%clk 0:03:04]} 7... O-O {[%clk 0:02:54.4]} 8. O-O {[%clk
0:03:04.2]} 8... d5 {[%clk 0:02:43.4]} 9. Nxd5 {[%clk 0:02:54.6]} 9... Nxd5
{[%clk 0:02:12.6]} 10. exd5 {[%clk 0:02:55.5]} 10... Nb4 {[%clk 0:02:11.8]} 11.
Qb3 {[%clk 0:02:54.2]} 11... a5 {[%clk 0:01:21.1]} 12. a3 {[%clk 0:02:31.7]}
12... Na6 {[%clk 0:01:08.5]} 13. Be3 {[%clk 0:02:31.6]} 13... Qc7 {[%clk
0:01:01]} 14. c3 {[%clk 0:01:54.7]} 14... Nc5 {[%clk 0:00:46.7]} 15. Qc4 {[%clk
0:01:54.5]} 15... b6 {[%clk 0:00:44]} 16. Qh4 {[%clk 0:01:23.6]} 16... Bf5
{[%clk 0:00:33.2]} 17. Bh6 {[%clk 0:01:16.3]} 17... Bf6 {[%clk 0:00:31.6]} 18.
Bg5 {[%clk 0:01:15.6]} 18... Qd6 {[%clk 0:00:15.3]} 19. Rad1 {[%clk 0:01:10.1]}
19... Rfe8 {[%clk 0:00:12.9]} 20. Nd4 {[%clk 0:00:58.7]} 20... Bd7 {[%clk
0:00:07.4]} 21. Bf3 {[%clk 0:00:55.9]} 21... Rad8 {[%clk 0:00:04.3]} 22. Rfe1
{[%clk 0:00:55.6]} 22... a4 {[%clk 0:00:01.8]} 23. h3 {[%clk 0:00:55.1]} 1-0

[Event "Late-Titled-Tuesday-Blitz-October-24-2023"]
[Site "Chess.com"]
[Date "2023.10.24"]
[Round "5"]
[White "Krakozia"]
[Black "HamedWafa4"]
[Result "1-0"]
[WhiteElo "2930"]
[BlackElo "2599"]
[TimeControl "180+1"]
[EndTime "14:54:44 PDT"]
[Termination "Krakozia won by resignation"]

1. c4 {[%clk 0:03:00.9]} 1... e5 {[%clk 0:02:57.2]} 2. d3 {[%clk 0:02:59.5]}
2... Bb4+ {[%clk 0:02:55.8]} 3. Nd2 {[%clk 0:02:58.3]} 3... a5 {[%clk
0:02:49.2]} 4. Nf3 {[%clk 0:02:57.1]} 4... Nc6 {[%clk 0:02:48.4]} 5. g3 {[%clk
0:02:56.8]} 5... Nf6 {[%clk 0:02:40.7]} 6. Bg2 {[%clk 0:02:56.3]} 6... O-O
{[%clk 0:02:40.3]} 7. O-O {[%clk 0:02:56.2]} 7... a4 {[%clk 0:02:38.3]} 8. a3
{[%clk 0:02:49.6]} 8... Be7 {[%clk 0:02:21.8]} 9. Nb1 {[%clk 0:02:46.1]} 9... d5
{[%clk 0:02:21.9]} 10. cxd5 {[%clk 0:02:43.2]} 10... Nxd5 {[%clk 0:02:22.8]} 11.
Nc3 {[%clk 0:02:42.7]} 11... Nxc3 {[%clk 0:02:14.6]} 12. bxc3 {[%clk 0:02:42]}
12... Be6 {[%clk 0:02:14.1]} 13. Nd2 {[%clk 0:02:37.3]} 13... Bd5 {[%clk
0:02:07.4]} 14. Rb1 {[%clk 0:02:27.8]} 14... Bxg2 {[%clk 0:02:04.7]} 15. Kxg2
{[%clk 0:02:28.7]} 15... b6 {[%clk 0:01:36.5]} 16. Bb2 {[%clk 0:02:27.6]} 16...
Bc5 {[%clk 0:01:30.8]} 17. Qc2 {[%clk 0:02:21.2]} 17... f5 {[%clk 0:01:21.4]}
18. e3 {[%clk 0:02:14.4]} 18... Bd6 {[%clk 0:01:18.6]} 19. d4 {[%clk 0:02:10.5]}
19... Qe8 {[%clk 0:00:57.4]} 20. c4 {[%clk 0:01:59]} 20... e4 {[%clk 0:00:53.2]}
21. Rbe1 {[%clk 0:01:46.7]} 21... Kh8 {[%clk 0:00:47.7]} 22. f3 {[%clk
0:01:45.3]} 22... exf3+ {[%clk 0:00:47.3]} 23. Nxf3 {[%clk 0:01:44.3]} 23... Qe7
{[%clk 0:00:33.5]} 24. Nh4 {[%clk 0:01:42.4]} 24... Qe4+ {[%clk 0:00:30.3]} 25.
Qxe4 {[%clk 0:01:41.1]} 25... fxe4 {[%clk 0:00:31.2]} 26. Nf5 {[%clk 0:01:39.6]}
26... Kg8 {[%clk 0:00:15.4]} 27. d5 {[%clk 0:01:28.8]} 27... Ne5 {[%clk
0:00:15.3]} 28. Nxd6 {[%clk 0:01:23.6]} 28... cxd6 {[%clk 0:00:15.6]} 29. Bxe5
{[%clk 0:01:23.3]} 29... dxe5 {[%clk 0:00:16.5]} 30. Rb1 {[%clk 0:01:18.9]}
30... Rxf1 {[%clk 0:00:16.1]} 31. Kxf1 {[%clk 0:01:18.8]} 31... Rc8 {[%clk
0:00:15.2]} 32. Rb4 {[%clk 0:01:17.7]} 32... Kf7 {[%clk 0:00:12.7]} 33. Rxa4
{[%clk 0:01:16.5]} 33... Ke7 {[%clk 0:00:13.4]} 34. Rb4 {[%clk 0:01:14.3]} 34...
Rb8 {[%clk 0:00:11.3]} 35. c5 {[%clk 0:01:13.2]} 1-0

[Event "Late-Titled-Tuesday-Blitz-October-24-2023"]
[Site "Chess.com"]
[Date "2023.10.24"]
[Round "5"]
[White "dedpihto_v_kozhanom_palto"]
[Black "TigrVShlyape"]
[Result "0-1"]
[WhiteElo "2636"]
[BlackElo "2840"]
[TimeControl "180+1"]
[EndTime "14:54:55 PDT"]
[Termination "TigrVShlyape won by resignation"]

1. c4 {[%clk 0:03:00.9]} 1... e5 {[%clk 0:02:55.5]} 2. Nc3 {[%clk 0:03:01.2]}
2... Nc6 {[%clk 0:02:55.1]} 3. Nf3 {[%clk 0:03:01.7]} 3... Nf6 {[%clk 0:02:55]}
4. e3 {[%clk 0:03:01.9]} 4... g6 {[%clk 0:02:54.1]} 5. d4 {[%clk 0:03:01.7]}
5... d6 {[%clk 0:02:54.7]} 6. Be2 {[%clk 0:03:01.3]} 6... Bg7 {[%clk 0:02:55]}
7. O-O {[%clk 0:03:01.8]} 7... O-O {[%clk 0:02:55.6]} 8. b3 {[%clk 0:02:52]}
8... e4 {[%clk 0:02:44.7]} 9. Nd2 {[%clk 0:02:50.6]} 9... Re8 {[%clk 0:02:45.3]}
10. Bb2 {[%clk 0:02:41.5]} 10... d5 {[%clk 0:02:41.9]} 11. cxd5 {[%clk
0:02:41.2]} 11... Nb4 {[%clk 0:02:42.1]} 12. Rc1 {[%clk 0:02:34.9]} 12... Nbxd5
{[%clk 0:02:41.2]} 13. Nxd5 {[%clk 0:02:35.5]} 13... Nxd5 {[%clk 0:02:41.2]} 14.
Nc4 {[%clk 0:02:16.3]} 14... Qg5 {[%clk 0:02:38.9]} 15. Kh1 {[%clk 0:02:11.8]}
15... h5 {[%clk 0:02:38]} 16. Ne5 {[%clk 0:02:05]} 16... c6 {[%clk 0:02:36.5]}
17. Bc4 {[%clk 0:01:57]} 17... Be6 {[%clk 0:02:35.3]} 18. Qe2 {[%clk 0:01:47]}
18... f6 {[%clk 0:02:32.9]} 19. Bxd5 {[%clk 0:01:45.7]} 19... cxd5 {[%clk
0:02:33]} 20. f4 {[%clk 0:01:41.2]} 20... Qf5 {[%clk 0:02:28.1]} 21. h3 {[%clk
0:01:26]} 21... fxe5 {[%clk 0:02:26.9]} 22. dxe5 {[%clk 0:01:21.8]} 22... Rec8
{[%clk 0:02:22.7]} 23. Bd4 {[%clk 0:01:21.1]} 23... b6 {[%clk 0:02:22]} 24. Qa6
{[%clk 0:01:17.4]} 24... Qf7 {[%clk 0:02:19.2]} 25. a4 {[%clk 0:01:01.8]} 25...
Bf8 {[%clk 0:02:15.8]} 26. a5 {[%clk 0:00:59.1]} 26... bxa5 {[%clk 0:02:14.1]}
27. Qxa5 {[%clk 0:00:51.9]} 27... Qb7 {[%clk 0:02:12.4]} 28. Qa2 {[%clk
0:00:42.4]} 28... h4 {[%clk 0:02:06.3]} 29. Qf2 {[%clk 0:00:36]} 29... Be7
{[%clk 0:02:06.4]} 30. f5 {[%clk 0:00:36.6]} 30... Bxf5 {[%clk 0:02:02.2]} 31.
e6 {[%clk 0:00:34.8]} 31... Rxc1 {[%clk 0:01:54.1]} 32. Rxc1 {[%clk 0:00:35.7]}
32... Rc8 {[%clk 0:01:53.4]} 33. Ra1 {[%clk 0:00:35.9]} 33... Bc5 {[%clk
0:01:38.4]} 34. Be5 {[%clk 0:00:18.4]} 34... Qe7 {[%clk 0:01:35.4]} 35. Qf4
{[%clk 0:00:16.2]} 35... Qxe6 {[%clk 0:01:34.9]} 36. Bb2 {[%clk 0:00:14.9]}
36... d4 {[%clk 0:01:33.7]} 37. exd4 {[%clk 0:00:14.1]} 37... Bd6 {[%clk
0:01:26.4]} 38. Qxh4 {[%clk 0:00:14.3]} 38... Qe7 {[%clk 0:01:22.1]} 39. Qh6
{[%clk 0:00:11.3]} 39... Rc2 {[%clk 0:01:19.9]} 40. Rb1 {[%clk 0:00:07.5]} 40...
e3 {[%clk 0:01:19]} 41. d5 {[%clk 0:00:07.5]} 41... Rxb2 {[%clk 0:01:18.3]} 42.
Rxb2 {[%clk 0:00:08.4]} 42... e2 {[%clk 0:01:18]} 43. Rxe2 {[%clk 0:00:04.1]}
0-1

[Event "Late-Titled-Tuesday-Blitz-October-24-2023"]
[Site "Chess.com"]
[Date "2023.10.24"]
[Round "5"]
[White "Haykoooo0o"]
[Black "nitpicker"]
[Result "1-0"]
[WhiteElo "2444"]
[BlackElo "2247"]
[TimeControl "180+1"]
[EndTime "14:54:59 PDT"]
[Termination "Haykoooo0o won on time"]

1. d4 {[%clk 0:02:47.4]} 1... Nf6 {[%clk 0:02:59.2]} 2. Nf3 {[%clk 0:02:46.8]}
2... b6 {[%clk 0:02:58.4]} 3. Bf4 {[%clk 0:02:46.3]} 3... Bb7 {[%clk 0:02:58.2]}
4. e3 {[%clk 0:02:47]} 4... e6 {[%clk 0:02:58.2]} 5. Nbd2 {[%clk 0:02:46.2]}
5... d6 {[%clk 0:02:58.5]} 6. h3 {[%clk 0:02:46.3]} 6... Nbd7 {[%clk 0:02:58.4]}
7. c3 {[%clk 0:02:46.9]} 7... Qe7 {[%clk 0:02:58.1]} 8. Bh2 {[%clk 0:02:45.2]}
8... g6 {[%clk 0:02:58.1]} 9. Be2 {[%clk 0:02:45.4]} 9... Bg7 {[%clk 0:02:58.2]}
10. O-O {[%clk 0:02:46.1]} 10... O-O {[%clk 0:02:58.1]} 11. Rc1 {[%clk
0:02:46.8]} 11... e5 {[%clk 0:02:57.1]} 12. Nc4 {[%clk 0:02:47]} 12... e4 {[%clk
0:02:40.6]} 13. Nfd2 {[%clk 0:02:45.2]} 13... h5 {[%clk 0:02:34.4]} 14. Re1
{[%clk 0:02:41.2]} 14... Rfe8 {[%clk 0:02:34.3]} 15. Na3 {[%clk 0:02:41.4]}
15... Nf8 {[%clk 0:02:30.3]} 16. c4 {[%clk 0:02:40.8]} 16... Rad8 {[%clk
0:02:17.8]} 17. Nb5 {[%clk 0:02:40.1]} 17... a6 {[%clk 0:02:14]} 18. Nc3 {[%clk
0:02:40]} 18... N8h7 {[%clk 0:02:07.8]} 19. Qc2 {[%clk 0:02:38.2]} 19... g5
{[%clk 0:01:46.7]} 20. Nd5 {[%clk 0:02:33.4]} 20... Qd7 {[%clk 0:01:25.5]} 21.
a3 {[%clk 0:02:26.1]} 21... g4 {[%clk 0:01:14.4]} 22. hxg4 {[%clk 0:02:22.3]}
22... hxg4 {[%clk 0:01:09.8]} 23. Nxf6+ {[%clk 0:02:13.1]} 23... Nxf6 {[%clk
0:01:09.2]} 24. Bf4 {[%clk 0:02:13.3]} 24... Qf5 {[%clk 0:00:56.8]} 25. g3
{[%clk 0:02:13.3]} 25... Nh7 {[%clk 0:00:51.3]} 26. Qd1 {[%clk 0:02:01.7]} 26...
Bc8 {[%clk 0:00:47.8]} 27. Bf1 {[%clk 0:01:56.8]} 27... Ng5 {[%clk 0:00:45.9]}
28. Bxg5 {[%clk 0:01:56.7]} 28... Qxg5 {[%clk 0:00:46.6]} 29. Bg2 {[%clk
0:01:57]} 29... f5 {[%clk 0:00:40.5]} 30. Qc2 {[%clk 0:01:52]} 30... Kh7 {[%clk
0:00:33.1]} 31. b4 {[%clk 0:01:50.8]} 31... Rh8 {[%clk 0:00:32.3]} 32. c5 {[%clk
0:01:49.1]} 32... bxc5 {[%clk 0:00:20.8]} 33. bxc5 {[%clk 0:01:48.9]} 33... a5
{[%clk 0:00:17.3]} 34. Qc4 {[%clk 0:01:42]} 34... Qh5 {[%clk 0:00:13.9]} 35. Rb1
{[%clk 0:01:34.6]} 35... Kg6 {[%clk 0:00:13.5]} 36. Kf1 {[%clk 0:01:23.6]} 36...
dxc5 {[%clk 0:00:12.3]} 37. Qxc5 {[%clk 0:01:21.1]} 37... Ba6+ {[%clk
0:00:11.4]} 38. Nc4 {[%clk 0:01:21.7]} 38... Rb8 {[%clk 0:00:06.8]} 39. Qc6+
{[%clk 0:01:20.7]} 39... Kh7 {[%clk 0:00:04.3]} 40. Qxa6 {[%clk 0:01:18.5]}
40... f4 {[%clk 0:00:03.3]} 41. Bxe4+ {[%clk 0:01:16]} 41... Kg8 {[%clk
0:00:02.3]} 42. Qe6+ {[%clk 0:01:15.4]} 1-0

[Event "Late-Titled-Tuesday-Blitz-October-24-2023"]
[Site "Chess.com"]
[Date "2023.10.24"]
[Round "5"]
[White "szachmistrz2500"]
[Black "BasilSmash"]
[Result "0-1"]
[WhiteElo "2421"]
[BlackElo "2621"]
[TimeControl "180+1"]
[EndTime "14:55:00 PDT"]
[Termination "BasilSmash won by resignation"]

1. Nf3 {[%clk 0:02:57.2]} 1... c5 {[%clk 0:02:57]} 2. g3 {[%clk 0:02:57.1]} 2...
g6 {[%clk 0:02:55.3]} 3. Bg2 {[%clk 0:02:57.1]} 3... Bg7 {[%clk 0:02:55.9]} 4.
O-O {[%clk 0:02:57.4]} 4... Nc6 {[%clk 0:02:56.3]} 5. e4 {[%clk 0:02:57.5]} 5...
d6 {[%clk 0:02:52.2]} 6. c3 {[%clk 0:02:55.6]} 6... e5 {[%clk 0:02:52.4]} 7. a3
{[%clk 0:02:42.2]} 7... Nge7 {[%clk 0:02:51.6]} 8. b4 {[%clk 0:02:42.5]} 8...
O-O {[%clk 0:02:50.7]} 9. b5 {[%clk 0:02:42.5]} 9... Na5 {[%clk 0:02:49.6]} 10.
d4 {[%clk 0:02:41.6]} 10... cxd4 {[%clk 0:02:46.6]} 11. cxd4 {[%clk 0:02:41.8]}
11... exd4 {[%clk 0:02:47.1]} 12. Nxd4 {[%clk 0:02:41]} 12... b6 {[%clk
0:02:32.6]} 13. Bb2 {[%clk 0:02:37.4]} 13... Bb7 {[%clk 0:02:31.4]} 14. Nd2
{[%clk 0:02:33.5]} 14... Rc8 {[%clk 0:02:30.6]} 15. Rc1 {[%clk 0:02:24]} 15...
Qd7 {[%clk 0:02:30.8]} 16. Qe2 {[%clk 0:02:20.3]} 16... Rc5 {[%clk 0:02:24.8]}
17. N2b3 {[%clk 0:02:13.6]} 17... Nxb3 {[%clk 0:02:23.9]} 18. Nxb3 {[%clk
0:02:13.7]} 18... Qxb5 {[%clk 0:02:19.6]} 19. Qxb5 {[%clk 0:02:09.6]} 19... Rxb5
{[%clk 0:02:20.5]} 20. Bxg7 {[%clk 0:02:09.7]} 20... Kxg7 {[%clk 0:02:18.9]} 21.
Nd4 {[%clk 0:02:07.5]} 21... Rc5 {[%clk 0:02:17.9]} 22. e5 {[%clk 0:02:00.4]}
22... Bxg2 {[%clk 0:02:11.3]} 23. Kxg2 {[%clk 0:01:32.8]} 23... Rxc1 {[%clk
0:02:01.6]} 24. Rxc1 {[%clk 0:01:32]} 24... dxe5 {[%clk 0:02:01.9]} 25. Nb5
{[%clk 0:01:32.2]} 25... Rc8 {[%clk 0:02:00.5]} 26. Rd1 {[%clk 0:01:30.3]} 26...
a6 {[%clk 0:01:57.3]} 27. Nd6 {[%clk 0:01:28.9]} 27... Rc6 {[%clk 0:01:50.6]}
28. Ne8+ {[%clk 0:01:28.4]} 28... Kf8 {[%clk 0:01:45.2]} 29. Rd8 {[%clk
0:01:28.2]} 29... Rc8 {[%clk 0:01:45]} 30. Rxc8 {[%clk 0:01:25.1]} 30... Nxc8
{[%clk 0:01:45.9]} 31. Nf6 {[%clk 0:01:26]} 31... Kg7 {[%clk 0:01:39]} 32. Nd7
{[%clk 0:01:26]} 32... f6 {[%clk 0:01:38]} 33. Kf3 {[%clk 0:01:26.4]} 33... Kf7
{[%clk 0:01:37.6]} 34. Ke4 {[%clk 0:01:26.4]} 34... Ke7 {[%clk 0:01:28.2]} 35.
Nb8 {[%clk 0:01:24.9]} 35... Kd6 {[%clk 0:01:14.6]} 36. Nxa6 {[%clk 0:01:22.8]}
36... f5+ {[%clk 0:01:12.7]} 37. Kd3 {[%clk 0:01:21.3]} 37... Na7 {[%clk
0:01:07.8]} 38. a4 {[%clk 0:01:18.1]} 38... g5 {[%clk 0:00:58]} 39. Nb4 {[%clk
0:01:15.3]} 39... Nc6 {[%clk 0:00:55.4]} 40. Nc2 {[%clk 0:01:13.1]} 40... Kc5
{[%clk 0:00:51.3]} 41. Kc3 {[%clk 0:01:10.3]} 41... f4 {[%clk 0:00:48.5]} 42.
gxf4 {[%clk 0:01:03.5]} 42... gxf4 {[%clk 0:00:49.4]} 43. Ne1 {[%clk 0:01:03.7]}
43... e4 {[%clk 0:00:46]} 44. Ng2 {[%clk 0:01:03.6]} 44... f3 {[%clk 0:00:41.8]}
45. Ne3 {[%clk 0:01:02.6]} 45... Ne5 {[%clk 0:00:41.2]} 46. Ng4 {[%clk
0:00:53.9]} 46... Nxg4 {[%clk 0:00:39]} 0-1

[Event "Late-Titled-Tuesday-Blitz-October-24-2023"]
[Site "Chess.com"]
[Date "2023.10.24"]
[Round "5"]
[White "Kombinator01"]
[Black "Nekoo04"]
[Result "0-1"]
[WhiteElo "2413"]
[BlackElo "2258"]
[TimeControl "180+1"]
[EndTime "14:55:02 PDT"]
[Termination "Nekoo04 won by resignation"]

1. e4 {[%clk 0:03:00.9]} 1... c5 {[%clk 0:02:36.9]} 2. Nf3 {[%clk 0:03:00.4]}
2... d6 {[%clk 0:02:37.4]} 3. d4 {[%clk 0:03:00.7]} 3... cxd4 {[%clk 0:02:38.3]}
4. Nxd4 {[%clk 0:03:01.4]} 4... Nf6 {[%clk 0:02:39]} 5. f3 {[%clk 0:03:01.5]}
5... g6 {[%clk 0:02:39.6]} 6. Nc3 {[%clk 0:02:58.8]} 6... Bg7 {[%clk 0:02:40.2]}
7. Be3 {[%clk 0:02:58.5]} 7... Nc6 {[%clk 0:02:40]} 8. Bc4 {[%clk 0:02:58.8]}
8... O-O {[%clk 0:02:39.6]} 9. Qd2 {[%clk 0:02:59.3]} 9... Bd7 {[%clk
0:02:39.5]} 10. O-O-O {[%clk 0:02:59.4]} 10... Rb8 {[%clk 0:02:39.6]} 11. h4
{[%clk 0:02:56.5]} 11... Na5 {[%clk 0:02:38.7]} 12. Bd3 {[%clk 0:02:44]} 12...
b5 {[%clk 0:02:05.6]} 13. Ndxb5 {[%clk 0:02:21.7]} 13... Bxb5 {[%clk 0:01:57.5]}
14. Nxb5 {[%clk 0:02:12.6]} 14... a6 {[%clk 0:01:30.8]} 15. Nd4 {[%clk
0:02:10.2]} 15... Qc7 {[%clk 0:01:29.2]} 16. Nb3 {[%clk 0:02:07.7]} 16... Nxb3+
{[%clk 0:01:26.1]} 17. axb3 {[%clk 0:02:08.6]} 17... a5 {[%clk 0:01:26.5]} 18.
Bh6 {[%clk 0:01:29.1]} 18... Rxb3 {[%clk 0:01:19.3]} 19. Bxg7 {[%clk 0:01:23.8]}
19... Kxg7 {[%clk 0:01:19.2]} 20. h5 {[%clk 0:00:54.7]} 20... Rfb8 {[%clk
0:01:11.8]} 21. hxg6 {[%clk 0:00:54.6]} 21... fxg6 {[%clk 0:00:59.8]} 22. Qh6+
{[%clk 0:00:52.4]} 22... Kf7 {[%clk 0:00:57.9]} 23. Qf4 {[%clk 0:00:51.8]} 23...
Rxb2 {[%clk 0:00:34.9]} 24. Rxh7+ {[%clk 0:00:51.5]} 24... Kg8 {[%clk 0:00:33]}
25. Rh6 {[%clk 0:00:38.2]} 25... Qc3 {[%clk 0:00:26.4]} 26. Rxg6+ {[%clk
0:00:25.5]} 26... Kf7 {[%clk 0:00:24.1]} 0-1

[Event "Late-Titled-Tuesday-Blitz-October-24-2023"]
[Site "Chess.com"]
[Date "2023.10.24"]
[Round "5"]
[White "baag"]
[Black "Kirill_Klukin"]
[Result "1-0"]
[WhiteElo "2860"]
[BlackElo "2637"]
[TimeControl "180+1"]
[EndTime "14:55:05 PDT"]
[Termination "baag won by resignation"]

1. d4 {[%clk 0:03:00.9]} 1... f5 {[%clk 0:02:58.6]} 2. g3 {[%clk 0:03:00.5]}
2... e6 {[%clk 0:02:58.3]} 3. Bg2 {[%clk 0:02:59.6]} 3... Nf6 {[%clk 0:02:58.9]}
4. Nf3 {[%clk 0:03:00.2]} 4... d5 {[%clk 0:02:59.2]} 5. O-O {[%clk 0:03:00.9]}
5... Bd6 {[%clk 0:02:59.9]} 6. c4 {[%clk 0:02:58.4]} 6... c6 {[%clk 0:03:00.1]}
7. Qc2 {[%clk 0:02:58.8]} 7... O-O {[%clk 0:03:00.5]} 8. Nc3 {[%clk 0:02:59.1]}
8... Qe7 {[%clk 0:03:00.5]} 9. Rb1 {[%clk 0:02:58.8]} 9... b6 {[%clk 0:02:57.2]}
10. Ne5 {[%clk 0:02:50.9]} 10... Bb7 {[%clk 0:02:57]} 11. cxd5 {[%clk
0:02:49.9]} 11... cxd5 {[%clk 0:02:42.3]} 12. Nb5 {[%clk 0:02:48.8]} 12... Rc8
{[%clk 0:02:41.2]} 13. Qb3 {[%clk 0:02:42.5]} 13... Nc6 {[%clk 0:02:36.9]} 14.
Nxd6 {[%clk 0:02:32.6]} 14... Qxd6 {[%clk 0:02:36.4]} 15. Qe3 {[%clk 0:01:59.4]}
15... Nd7 {[%clk 0:02:15.5]} 16. Nd3 {[%clk 0:01:54.7]} 16... Na5 {[%clk
0:01:40.1]} 17. Nf4 {[%clk 0:01:51.1]} 17... Nf8 {[%clk 0:01:40.8]} 18. b3
{[%clk 0:01:50.3]} 18... Rc2 {[%clk 0:01:39.7]} 19. Rb2 {[%clk 0:01:37.5]} 19...
Rac8 {[%clk 0:01:39.5]} 20. Rxc2 {[%clk 0:01:18.7]} 20... Rxc2 {[%clk
0:01:40.4]} 21. Qd3 {[%clk 0:01:19.3]} 21... Qc7 {[%clk 0:01:22.7]} 22. Ba3
{[%clk 0:01:18.8]} 22... Bc8 {[%clk 0:01:07.3]} 23. Nxd5 {[%clk 0:00:57.6]}
23... exd5 {[%clk 0:01:02.1]} 24. Bxd5+ {[%clk 0:00:58.5]} 24... Kh8 {[%clk
0:00:26.1]} 25. Bxf8 {[%clk 0:00:58.5]} 25... Rxa2 {[%clk 0:00:26.6]} 26. b4
{[%clk 0:00:56.7]} 26... Ra4 {[%clk 0:00:15]} 27. bxa5 {[%clk 0:00:56.3]} 27...
Qd8 {[%clk 0:00:15.1]} 28. Bb3 {[%clk 0:00:33.9]} 28... Rxd4 {[%clk 0:00:15.4]}
29. Qc3 {[%clk 0:00:34.5]} 29... bxa5 {[%clk 0:00:11.9]} 30. Bxg7+ {[%clk
0:00:33.6]} 30... Kxg7 {[%clk 0:00:11.2]} 31. Rd1 {[%clk 0:00:34.5]} 1-0

[Event "Late-Titled-Tuesday-Blitz-October-24-2023"]
[Site "Chess.com"]
[Date "2023.10.24"]
[Round "5"]
[White "esskeettit"]
[Black "gahryman"]
[Result "0-1"]
[WhiteElo "2489"]
[BlackElo "2682"]
[TimeControl "180+1"]
[EndTime "14:55:05 PDT"]
[Termination "gahryman won by resignation"]

1. d4 {[%clk 0:03:00.9]} 1... Nf6 {[%clk 0:02:58.3]} 2. c4 {[%clk 0:03:01.5]}
2... e6 {[%clk 0:02:52.2]} 3. Nc3 {[%clk 0:03:00.1]} 3... d5 {[%clk 0:02:52.4]}
4. cxd5 {[%clk 0:02:59.7]} 4... exd5 {[%clk 0:02:53.3]} 5. Bg5 {[%clk
0:02:59.1]} 5... c6 {[%clk 0:02:51.9]} 6. e3 {[%clk 0:02:58.7]} 6... Bd6 {[%clk
0:02:48.6]} 7. Bd3 {[%clk 0:02:57.8]} 7... O-O {[%clk 0:02:48.8]} 8. Nge2 {[%clk
0:02:58.4]} 8... Re8 {[%clk 0:02:46.3]} 9. h3 {[%clk 0:02:57.6]} 9... a5 {[%clk
0:02:44.4]} 10. O-O {[%clk 0:02:55.8]} 10... Na6 {[%clk 0:02:43.3]} 11. a3
{[%clk 0:02:47.1]} 11... Nc7 {[%clk 0:02:42.2]} 12. Qc2 {[%clk 0:02:34.9]} 12...
h6 {[%clk 0:02:41.7]} 13. Bh4 {[%clk 0:02:34.2]} 13... Ne6 {[%clk 0:02:42.3]}
14. Rad1 {[%clk 0:01:55.3]} 14... Ng5 {[%clk 0:02:41.4]} 15. f4 {[%clk
0:01:16.2]} 15... Ne6 {[%clk 0:02:40.6]} 16. e4 {[%clk 0:01:12]} 16... dxe4
{[%clk 0:02:35.7]} 17. Nxe4 {[%clk 0:01:11.1]} 17... Be7 {[%clk 0:02:35.8]} 18.
Bf2 {[%clk 0:00:56.9]} 18... Nd5 {[%clk 0:02:16]} 19. Qc1 {[%clk 0:00:54.1]}
19... Qc7 {[%clk 0:01:50.3]} 20. Kh1 {[%clk 0:00:53.8]} 20... Ndxf4 {[%clk
0:01:32.3]} 21. Nxf4 {[%clk 0:00:35.3]} 21... Qxf4 {[%clk 0:01:32]} 22. Be3
{[%clk 0:00:27.8]} 22... Qh4 {[%clk 0:01:31.6]} 23. Bb1 {[%clk 0:00:20.6]} 23...
Nf8 {[%clk 0:01:24.4]} 24. Qc2 {[%clk 0:00:18.2]} 24... Be6 {[%clk 0:01:08.9]}
25. Rf4 {[%clk 0:00:17.6]} 25... Qh5 {[%clk 0:01:07.8]} 26. Rdf1 {[%clk
0:00:17.5]} 26... Bd5 {[%clk 0:01:07.8]} 27. Ng3 {[%clk 0:00:17]} 27... Qxh3+
{[%clk 0:01:07.2]} 28. Kg1 {[%clk 0:00:17.7]} 28... Qxg3 {[%clk 0:01:07.4]} 29.
Bc1 {[%clk 0:00:10]} 29... Bg5 {[%clk 0:01:02.4]} 30. R4f2 {[%clk 0:00:03.6]}
30... Be3 {[%clk 0:00:56.8]} 31. Bxe3 {[%clk 0:00:03.5]} 31... Rxe3 {[%clk
0:00:57.6]} 32. Qc1 {[%clk 0:00:03.4]} 32... Rae8 {[%clk 0:00:56.7]} 33. Bf5
{[%clk 0:00:03.2]} 33... Re2 {[%clk 0:00:55.4]} 34. Bh3 {[%clk 0:00:02.9]} 34...
Rxf2 {[%clk 0:00:55.5]} 35. Rxf2 {[%clk 0:00:03.8]} 35... Qe3 {[%clk 0:00:55.3]}
0-1